Cogmind - Beta 16.1 @@@ ROGUE MODE // 2026.03.08 @ 19:34:42 Player: Zable Result: Self-destructed Performance ------------- Evolutions (1) 500 Regions Visited (2) 400 Robots Destroyed (23) 115 Value Destroyed (312) 312 Prototype IDs (0) 0 Alien Tech Used (0) 0 Bonus (0) 0 TOTAL SCORE: 1327 Bonus ------- None Cogmind --------- Core Integrity 376/400 Matter 107/300 Energy 100/100 System Corruption 11% Temperature Cool (6) Movement Treading (160) Location -9/Materials Parts ------- > --- POWER (1) -------- (None) > --- PROPULSION (4) --- Light Treads Light Treads Light Treads Improved Treads > --- UTILITY (2) ------ Large Storage Unit Light Armor Plating > --- WEAPON (2) ------- (None) > --- INVENTORY (15) --- Ion Engine Aluminum Leg Aluminum Leg Wheel Wheel Small Storage Unit Peak State ------------ > --- POWER ------------ Ion Engine > --- PROPULSION ------- Light Treads Light Treads Light Treads Improved Treads > --- UTILITY ---------- Large Storage Unit Seismic Detector > --- WEAPON ----------- Light Cannon Light Cannon > --- INVENTORY -------- Ion Engine Aluminum Leg Aluminum Leg Wheel Wheel Small Storage Unit EM Pulse Gun [Rating: 10] Favorites ----------- Power Ion Engine Engine Ion Engine Propulsion Light Treads Treads Light Treads Leg Aluminum Leg Utility Seismic Detector Device Seismic Detector Storage Large Storage Unit Protection Light Armor Plating Weapon Light Cannon Energy Gun EM Pulse Gun Ballistic Gun Light Assault Rifle Ballistic Cannon Light Cannon Build | -11 -10 -9 ------- Run | Yrd Mat Mat Slots Evolved 2 | . . 2 Power . | . . . Propulsion 2 | . . 2 Utility . | . . . Weapon . | . . . Parts Attached 11 | 1 6 4 Power . | . . . Engine . | . . . Core . | . . . Reactor . | . . . Propulsion 5 | . 3 2 Treads 5 | . 3 2 Leg . | . . . Wheel . | . . . Hover . | . . . Flight . | . . . Utility 3 | 1 1 1 Device 1 | 1 . . Storage 1 | . 1 . Processor . | . . . Hackware . | . . . Protection 1 | . . 1 Artifact . | . . . Weapon 3 | . 2 1 Energy Gun 1 | . . 1 Energy Cannon . | . . . Ballistic Gun . | . . . Ballistic Cannon 2 | . 2 . Launcher . | . . . Special Weapon . | . . . Impact Weapon . | . . . Slashing Weapon . | . . . Piercing Weapon . | . . . Special Melee Weapon . | . . . Unidentified Prototypes . | . . . Parts Lost 5 | . 1 4 Power 1 | . . 1 Propulsion 1 | . 1 . Utility . | . . . Weapon 3 | . . 3 Highest Loss Streak 4 | . 1 4 To Critical Strikes . | . . . Average Backups 7 | 6 8 6 Power 1 | 1 1 1 Propulsion 4 | 4 5 4 Utility . | . . 1 Weapon . | 1 1 . Tool/Special . | . . . Unused Backups 5 | . 2 3 Power . | . . . Propulsion 2 | . . 2 Utility 1 | . . 1 Weapon 2 | . 2 . Tool/Special . | . . . Average Slot Usage (%) 99 | . 100 98 Engine 12 | . 14 11 Treads 25 | . 16 42 Leg 7 | . 11 . Device 12 | . 14 11 Storage 12 | . 14 11 Ballistic Gun 6 | . 10 . Ballistic Cannon 18 | . 17 21 Peak Build Rating 10 | 7 7 10 Average Rating 7 | 6 6 9 On Entrance 6 | 6 7 7 Avg Prop Armor Cover (%) . | . . . Naked Turns . | . . . Heaviest Build 32 | 14 32 32 Greatest Support 83 | 20 40 83 Greatest Overweight (x) 1 | . 1 . Average Overweight (x) . | . . . Largest Inventory Capacity 15 | 8 15 15 Average Capacity 14 | 8 14 15 Most Carried 9 | 6 9 7 Average Carried 7 | 6 8 6 Final Capacity 15 | 8 15 15 Final Carried 8 | 6 8 6 Class Distribution -------------------- 100% | Mutant Dominant Class ---------------- Mutant | -10/Materials Mutant | -9/Materials Resources | -11 -10 -9 ----------- Run | Yrd Mat Mat Matter Collected 475 | 226 208 41 Remotely . | . . . Salvage Created 386 | 54 237 95 Parts 50 | 6 36 8 Haulers Intercepted 1 | . 1 . Recyclers Shooed . | . . . Parts Field Recycled . | . . . Retrieved Matter . | . . . Parts Self-Destructed . | . . . Prevented . | . . . Parts Restored . | . . . Kills | -11 -10 -9 ------- Run | Yrd Mat Mat Combat Hostiles Destroyed 16 | . 12 4 Guns 3 | . 3 . Cannons 13 | . 9 4 Classes Destroyed 8 | 1 5 2 Worker 1 | . 1 . Builder 1 | . 1 . Tunneler 2 | 2 . . Hauler 1 | . 1 . Watcher 2 | . . 2 Swarmer 12 | . 9 3 Grunt 3 | . 3 . Brawler 1 | . . 1 Best Kill Streak 5 | 1 5 4 Combat Bots Only 4 | . 4 4 Max Kills in Single Turn 2 | 1 2 1 Gunslinging 1 | . 1 . Exploded . | . . . Melee . | . . . Uniques/NPCs Destroyed . | . . . Combat | -11 -10 -9 -------- Run | Yrd Mat Mat Hostile Shots Fired 130 | . 104 26 Missed 36 | . 32 4 Hits 94 | . 72 22 Melee 7 | . . 7 Projectile 87 | . 72 15 Damage Taken 935 | . 637 298 Core 143 | . 119 24 Absorbed by Shields . | . . . Core Remaining (%) 76 | 100 52 . Volleys Fired 58 | 4 36 18 Largest 2 | 2 2 2 Hottest 60 | 40 60 60 Shots Fired 114 | 8 72 34 Gun 28 | 8 18 2 Cannon 86 | . 54 32 Launcher . | . . . Special . | . . . Kinetic 112 | 8 72 32 Thermal . | . . . Explosive . | . . . Electromagnetic 2 | . . 2 Robot Hit Streak 9 | 2 4 9 Robot Miss Streak 4 | 1 4 3 Penetration Max . | . . . Secondary Targets 1 | . 1 . Max Gunslinging Chain 1 | . 1 . Shots Hit Robots 57 | 4 32 21 Core Hits 27 | 3 16 8 Critical Kills . | . . . Critical Parts Destroyed . | . . . Critical Strikes 1 | . 1 . Blast 1 | . 1 . Melee Attacks . | . . . Impact . | . . . Slashing . | . . . Piercing . | . . . Sneak Attacks . | . . . Combat Hostiles . | . . . Follow-up Attacks . | . . . Damage Inflicted 994 | 41 582 371 Guns 162 | 41 99 22 Cannons 814 | . 465 349 Explosions . | . . . Melee . | . . . Ramming 18 | . 18 . Kinetic 954 | 41 564 349 Thermal . | . . . Explosive . | . . . Electromagnetic 22 | . . 22 Impact . | . . . Slashing . | . . . Piercing . | . . . Highest Corruption 8 | . . 8 Average Corruption 8 | . . 8 Corruption Purged . | . . . Corruption Blocked . | . . . Effects 1 | . . 1 Data Loss (minor) 1 | . . 1 Overload Shots . | . . . Overflow Damage 45 | . 31 14 Projectiles 45 | . 31 14 Explosions . | . . . Melee . | . . . Knockbacks 8 | . 7 1 Impact . | . . . Kinetic 7 | . 6 1 Secondary 1 | . 1 . Self-Inflicted Damage . | . . . Shots . | . . . Rammed 4 | . 4 . Targets Rammed 4 | . 4 . Kicked . | . . . Crushed . | . . . Highest Temperature 30 | . 30 3 Average Temperature 16 | . 16 3 Received Heat Transfer 138 | . 120 18 Siege Activations . | . . . Martial Activations . | . . . Shielding Activations . | . . . Robots Disrupted . | . . . Combat Hostiles . | . . . Robots Corrupted . | . . . Combat Hostiles . | . . . Parts Fried . | . . . Impact Corruptions . | . . . Robots Melted . | . . . Combat Hostiles . | . . . Parts Melted . | . . . Heat Transferred . | . . . Parts Sabotaged . | . . . Parts Stolen . | . . . Parts Stripped . | . . . Power Chain Reactions . | . . . Alert | -11 -10 -9 ------- Run | Yrd Mat Mat Maximum Alert Level . | . . . Low Security (%) 100 | 100 100 100 Level 1 . | . . . Level 2 . | . . . Level 3 . | . . . Level 4 . | . . . Level 5 . | . . . High Security . | . . . Max Security . | . . . Peak Influence 129 | 5 129 93 Initial 49 | . 3 49 Average 32 | 1 44 16 Influence Increases 509 | 10 369 130 Destroy 0b10 Robot/C 320 | . 240 80 Destroy 0b10 Robot/NC 35 | 10 15 10 Destroy Leader 76 | . 52 24 Destroy Structure 3 | . 2 1 Partial Spotted 15 | . . 15 Lose Combat Pursuer 60 | . 60 . Influence Decreases 464 | 5 257 202 Entered New Map 70 | . 2 68 Time Decay 344 | 5 245 94 Lost Part 50 | . 10 40 Squads Dispatched 2 | . 2 . Investigation 1 | . 1 . Extermination . | . . . Reinforcement 1 | . 1 . Assault . | . . . Garrison . | . . . Intercept . | . . . Searches Triggered . | . . . Construction Impeded . | . . . Haulers Reinforced . | . . . Active Scanning Responses . | . . . Cargo Convoy Interrupts . | . . . Stealth | -11 -10 -9 --------- Run | Yrd Mat Mat Distress Signals 2 | . . 2 Communications Jammed . | . . . Distress Signals . | . . . Times Spotted 33 | . 21 12 Peak Tracking Total 11 | . 5 11 Tactical Retreats 3 | . 3 . Traps | -11 -10 -9 ------- Run | Yrd Mat Mat Traps Triggered 1 | . 1 . Indirectly . | . . . Trap Hack Attempts . | . . . Triggered . | . . . Disarmed . | . . . Reprogrammed . | . . . Reused . | . . . Traps Extracted . | . . . Installed . | . . . Triggered . | . . . Machines | -11 -10 -9 ---------- Run | Yrd Mat Mat Machines Disabled . | . . . Max in Single Turn . | . . . Machines Repaired . | . . . Machines Dismantled . | . . . Machines Sabotaged . | . . . Overloaded Fab Kills . | . . . Hacking | -11 -10 -9 --------- Run | Yrd Mat Mat Machines Accessed 1 | . 1 . Terminals 1 | . 1 . Fabricators . | . . . Repair Stations . | . . . Recycling Units . | . . . Scanalyzers . | . . . Garrison Access . | . . . Total Hacks 2 | . 2 . Successful . | . . . Failed 2 | . 2 . Catastrophic . | . . . Database Lockouts . | . . . Manual 3 | . 3 . Terminals 2 | . 2 . Fabricators . | . . . Repair Stations . | . . . Recycling Units . | . . . Scanalyzers . | . . . Garrison Access . | . . . Terminal Hacks . | . . . Fabricator Hacks . | . . . Repair Station Hacks . | . . . Recycling Unit Hacks . | . . . Scanalyzer . | . . . Garrison Access Hacks . | . . . Unauthorized Hacks . | . . . Terminals . | . . . Fabricators . | . . . Repair Stations . | . . . Recycling Units . | . . . Scanalyzers . | . . . Garrison Access . | . . . Data Cores Recovered . | . . . Used . | . . . Hacking Detections 1 | . 1 . Full Trace Events . | . . . Feedback Events . | . . . Feedback Blocked . | . . . Robot Schematics Acquired . | . . . Robots Built . | . . . Authchips . | . . . Time . | . . . Total Robot Build Rating . | . . . Part Schematics Acquired . | . . . Parts Built . | . . . Authchips . | . . . Time . | . . . Total Part Build Rating . | . . . Part Studies Acquired . | . . . Parts Repaired . | . . . Time . | . . . Parts Recycled . | . . . Recycled Matter . | . . . Retrieved Matter . | . . . Retrieved Components . | . . . Parts Scanalyzed . | . . . Part Schematics Acquired . | . . . Parts Damaged . | . . . Bothacking | -11 -10 -9 ------------ Run | Yrd Mat Mat Used RIF Installer . | . . . Robots Hacked . | . . . Non-combat . | . . . Combat . | . . . Robot Hacks Applied . | . . . Relay Couplers Released . | . . . Fabnet Peak Effective % . | . . . Robots Rewired . | . . . Allies Hacked . | . . . Hacks Repelled . | . . . Allies | -11 -10 -9 -------- Run | Yrd Mat Mat Total Allies . | . . . Largest Group . | . . . Highest-Rated Group . | . . . Highest-Rated Ally . | . . . Total Orders . | . . . Ally Attacks . | . . . Total Damage . | . . . Kills . | . . . Allies Corrupted . | . . . Allies Melted . | . . . Intel | -11 -10 -9 ------- Run | Yrd Mat Mat Active Infowar (turns) 1290 | 5 832 453 Seismic 1290 | 5 832 453 Robot Analysis Total . | . . . Derelict Logs Recovered . | . . . Drone Launches . | . . . Drone Recoveries . | . . . Exploration | -11 -10 -9 ------------- Run | Yrd Mat Mat Turns Passed 1364 | 74 832 458 Spaces Moved 463 | 15 313 135 Core . | . . . Treads 287 | . 152 135 Legs 176 | 15 161 . Wheels . | . . . Hover . | . . . Flight . | . . . Fastest Speed 120 | 120 120 160 Average Speed 161 | 120 164 160 Slowest Speed 190 | 120 190 160 Overloaded Moves . | . . . Propulsion Burnouts . | . . . Robots Hopped . | . . . Potential Cave-ins . | . . . Cave-ins Triggered . | . . . Exploration Rate (%) 23 | 3 55 13 Regions Visited 2 Branch Regions . Pre-discovered Areas . | . . . Known Exits Taken . | . . . Unknown Exits Taken 2 | 1 1 . Scrap Searched . | . . . Spaces Dug . | . . . Terrain Destroyed . | . . . Melee . | . . . Projectile . | . . . AOE . | . . . Terrain Rammed . | . . . Walls Destroyed . | . . . Machines Disabled . | . . . Actions | -11 -10 -9 --------- Run | Yrd Mat Mat Total 960 | 63 555 342 Wait 424 | 44 195 185 Move 461 | 14 312 135 Hop . | . . . Pick Up 2 | . 2 . Fast Attach 2 | 1 . 1 Attach 3 | . 1 2 Detach . | . . . Swap 6 | . 5 1 Drop . | . . . Fire 58 | 4 36 18 Melee . | . . . Ram . | . . . Kick . | . . . Crush 4 | . 4 . Escape Stasis . | . . . Rewire . | . . . Trap . | . . . Miscellaneous . | . . . Route ------- -11/Scrapyard -10/Materials (discovered 2 exits: [*Mat] / [*Min]) -9/Materials History --------- Turn | Location | Event 1 | -11/Scrapyard | Discovered new exit (range 2) 75 | -11/Scrapyard | Entered Materials 309 | -10/Materials | Build established: Mutant 540 | -10/Materials | Discovered new exit (range 15) 883 | -10/Materials | Discovered new exit (range 8) 907 | -10/Materials | Entered another Materials area 907 | -9/Materials | Evolved 2 slots: Propulsion x2 1365 | -9/Materials | Self-destructed Last Messages --------------- 00943_ W-16 Scout destroyed. 00957_ Acquired Imp. Treads. 00965_ Acquired 15 matter. 01078_ W-16 Scout destroyed. 01117_ K-01 Serf collects debris. 01280_ Acquired 26 matter. 01304_ A-02 Transporter sends out distress signal. 01313_ T-07 Excavator is excavating. 01321_ S-10 Pest destroyed. 01327_ Destroyed Flight Unit. 01333_ S-10 Pest destroyed. 01345_ B-36 Bruiser destroyed. 01355_ Lgt. Cannon destroyed. 01355_ System corrupted by crushing effect (+5). 01355_ System corrupted by crushing effect (+3). 01360_ System corrupted: Component data lost. 01360_ Acquired Lgt. Armor Plating. 01365_ Ion Engine destroyed. 01365_ EM Pulse Gun destroyed. 01365_ System corrupted by crushing effect (+3). Map ----- +----------------------------------------------------+ | !#?????????????????????????????????????????? | | #?????????????????????????????????????????? | | ######################????????????????????? | | % % #????????????????????? | | ! #??#####?????????????? | | * #? #?????????????? | | #####+######+####### #? "" #?????????????? | | ??# # #??# # Y" #?????????????? | | ??#""" # #??# # "" #?????????????? | | ??#""" # #??# + #?????????????? | | ??#""" # """ #??# # #?????????????? | | ??# # """ #??# ##########???????????? | | ??#""" # """ #??# #? #???????????? | | ??#""" ########??# #? """#???????????? | | ??#""" #?????????# # """#???????????? | | ??# !#?????????# # """#???????????? | | ??#""" #?????????/ + #???????????? | | ??#""" #?????????# # """#???????????? | | ??#""" #?????????# # """#???????????? | | ??# #?????????# #? """#???????????? | | ??########?????????# #? #???????????? | | ???????????????????# % ###########??????????? | | ???????????????????# # #??????????? | | ????????????##+##### % # #??????????? | | ????????????# %%s#%% #??????????? | | ????????????# ggg%@ #??????????? | | ????????????# % #b #??????????? | | ????????????##u##### #!!! #??????????? | | ????????????# ?????# #!!! #??????????? | | ???????????????????# #!!! #??????????? | | ???????????????????# ###########??????????? | | ???????????????????# #????????????????????? | | ???????????????????# #????????????????????? | | ???????????????????# #????????????????????? | | ???????????????????# #????????????????????? | | ???????????????????# #????????????????????? | | ???????????????????# #????????????????????? | | ???????????????????# ?????????????????????? | | ???????????????????# ?????????????????????? | | ???????????????????? ?????????????????????? | | ????????????????????????????????????????????? | | ????????????????????????????????????????????? | | ????????????????????????????????????????????? | | ????????????????????????????????????????????? | | ????????????????????????????????????????????? | | ????????????????????????????????????????????? | | ????????????????????????????????????????????? | | ????????????????????????????????????????????? | | ????????????????????????????????????????????? | | ????????????????????????????????????????????? | +----------------------------------------------------+ Best States ------------- Heat Dissipation 28 Energy Generation 10 Energy Capacity 250 Matter Stores 300 Matter Capacity 300 Sight Range 16 Terrain Scan Density 10 Evasion (%) 55 Recoil Reduction 4 Item Schematics ----------------- None Robot Schematics ------------------ None Fabricated ------------ Nothing Repaired ---------- Nothing Studied --------- None Alien Tech Used ----------------- None Achievements -------------- None Challenges ------------ None Game ------ Seed ThermicSpectralJetlance Manual? 0 Play Time 00:09:41 Cumulative 50.8 hours Start 2026.03.08 @ 19:27:04 End 2026.03.08 @ 19:34:42 Sessions 1 Manual Loads 0 Difficulty Rogue Special Mode None Game No. 76 Rogue 51 Adventurer 25 Explorer 0 Win Type - Total 0 Types 0/0/0/0/0/0/0/0/0/0 Lore% 35 Gallery% 36 Achievement% 30 Wizard Run 0 Options --------- Layout 0 ASCII 0 Keyboard 1 Movement Numpad Keybinds 0 Fullscreen 1 Font 24/Smallcaps Map View 183x50 Zoom Use 0% Tactical HUD 1 Map Filters NONE Filters NONE Steam 1 RUN: 23563809-c22c-4dd7-b682-2e616e51ce51